fUSD/lending_fUSD_20251213
["ID","MTS","AMOUNT","RATE_DAILY","PERIOD"]
[398398345,1765603832112,-197.23732867,0.00015768,2]
[398398346,1765603832121,-288.2,0.0001585,2]
[398398347,1765603832130,-262.24372056,0.00015869,2]
[398398348,1765603832141,-398.84064774,0.00015869,2]
[398398349,1765603832163,-300.92044309,0.00015869,2]
[398398350,1765603832174,-135.99518861,0.00015869,2]
[398398351,1765603832184,-260.30997207,0.00015933,2]
[398398352,1765603832193,-760.31198299,0.00015978,2]
[398398353,1765603832208,-239.68801701,0.00015978,2]
[398398354,1765603832218,-500.0,0.00016101,2]
[398398355,1765603832228,-166.66,0.00016126,2]
[398398356,1765603832238,-150.0,0.00016175,2]
[398398357,1765603832247,-743.405633,0.00016376,2]
[398398358,1765603832257,-166.66,0.00016459,2]
[398398359,1765603832266,-1489.56818064,0.00016573,2]
[398398360,1765603832277,-281.3609,0.000166,2]
[398398361,1765603832287,-3049.10310791,0.000166,2]
[398398362,1765603832300,-3225.55981327,0.000166,2]
[398398363,1765603832316,-253.75486113,0.000166,2]
[398398364,1765603832327,-1693.68127901,0.000166,2]
[398398367,1765603838118,-349.43400439,0.00016599,2]
[398398368,1765603838175,-150.56599561,0.00016599,2]
[398398369,1765603838185,-487.98937816,0.00016599,2]
[398398370,1765603838196,-12.01062184,0.00016599,2]
[398398371,1765603838206,-324.7020707,0.00016599,2]
[398398372,1765603838215,-195.75320493,0.00016599,2]
[398398373,1765603838225,-500.0,0.00016599,2]
[398398374,1765603838235,-500.0,0.00016599,2]
[398398375,1765603838244,-265.8962723,0.00016599,2]
[398398376,1765603838253,-500.0,0.00016599,2]
[398398377,1765603838263,-363.0,0.00016599,2]
[398398378,1765603838272,-71853.43854682,0.000166,2]
[398398379,1765603838287,-400.0,0.000166,2]
[398398380,1765603838299,-4071.55773437,0.000166,2]
[398398381,1765603838310,-50756.99645749,0.000166,2]
[398398382,1765603838319,-6874.16165541,0.00016604,2]
[398398383,1765603838329,-221.95,0.0001664,2]
[398398384,1765603838338,-300.0,0.0001668,2]
[398398385,1765603838347,-360.32112161,0.00016689,2]
[398398386,1765603838357,-5954.49566294,0.0001669,2]
[398398387,1765603838368,-3185.34433706,0.0001669,2]
[398398388,1765603838378,-508.42497145,0.0001669,2]
[398398389,1765603838388,-200.0,0.0001669,2]
[398398390,1765603838397,-1000.0,0.0001669,2]
[398398391,1765603838407,-1000.0,0.0001669,2]
[398398393,1765603838416,-875.69538804,0.0001669,2]
[398398420,1765603840292,-124.30461196,0.0001669,2]
[398398421,1765603840301,-200.0,0.0001669,2]
[398398422,1765603840311,-1000.0,0.0001669,2]
[398398423,1765603840321,-1000.0,0.0001669,2]
[398398424,1765603840331,-1000.0,0.0001669,2]
[398398425,1765603840341,-1000.0,0.0001669,2]
[398398426,1765603840351,-1000.0,0.0001669,2]
[398398427,1765603840360,-1000.0,0.0001669,2]
[398398428,1765603840369,-1000.0,0.0001669,2]
[398398429,1765603840380,-200.0,0.0001669,2]
[398398430,1765603840390,-1116.77467892,0.0001669,2]
[398398431,1765603840400,-500.0,0.0001669,2]
[398398432,1765603840409,-151.0,0.0001669,2]
[398398433,1765603840419,-500.0,0.0001669,2]
[398398434,1765603840428,-500.0,0.0001669,2]
[398398435,1765603840437,-513.85864603,0.0001669,2]
[398398436,1765603840447,-574.12855637,0.0001669,2]
[398398437,1765603840456,-500.0,0.0001669,2]
[398398438,1765603840466,-151.0,0.0001669,2]
[398398439,1765603840475,-151.0,0.0001669,2]
[398398440,1765603840484,-151.0,0.0001669,2]
[398398441,1765603840493,-151.0,0.0001669,2]
[398398442,1765603840503,-151.0,0.0001669,2]
[398398443,1765603840512,-151.0,0.0001669,2]
[398398444,1765603840522,-151.0,0.0001669,2]
[398398445,1765603840531,-151.0,0.0001669,2]
[398398446,1765603840541,-151.0,0.0001669,2]
[398398447,1765603840551,-151.0,0.0001669,2]
[398398448,1765603840561,-151.0,0.0001669,2]
[398398449,1765603840571,-261.07039907,0.0001669,2]
[398398450,1765603840587,-151.0,0.00016697,2]
[398398451,1765603840596,-151.0,0.00016697,2]
[398398452,1765603840606,-151.0,0.00016697,2]
[398398454,1765603840616,-495.92609941,0.00016699,2]
[398398460,1765603840915,-1.7e-07,0.00016699,2]
[398398467,1765603843291,-2027.74990042,0.00016699,2]
[398398468,1765603843300,-178.504,0.00016699,2]
[398398469,1765603843309,-500.0,0.00016699,2]
[398398470,1765603843319,-500.0,0.00016699,2]
[398398471,1765603843328,-500.0,0.00016699,2]
[398398472,1765603843337,-2965.88,0.00016699,2]
[398398473,1765603843346,-2965.88,0.00016699,2]
[398398474,1765603843356,-2965.88,0.00016699,2]
[398398475,1765603843365,-1098.0,0.00016705,2]
[398398476,1765603843375,-288.2,0.00016731,2]
[398398477,1765603843384,-188.7,0.00016739,2]
[398398478,1765603843393,-6874.16165536,0.00016748,2]
[398398479,1765603843402,-4529.76600177,0.00016762,2]
[398398480,1765603843425,-1551.77521691,0.00016762,2]
[398398482,1765603846154,-332.818322,0.00016762,2]
[398398483,1765603846209,-7415.94707886,0.00016762,2]
[398398484,1765603846375,-332.818322,0.00016762,2]
[398398497,1765604141583,391.48,0.00013699,2]
[398398499,1765604628399,6475.88473635,0.00025,120]
[398398500,1765604713704,239.66027224,0.00015288,2]
[398398501,1765604713745,244.04516444,0.00015288,2]
[398398502,1765604713780,150.0,0.00015288,2]
[398398503,1765604720608,150.0,0.00015288,2]
[398398504,1765604726153,150.0,0.00015288,2]
[398398505,1765604823471,-250.0,0.00015813,2]
[398398506,1765604823493,-229.64747171,0.00015857,2]
[398398507,1765604825224,-201.50753266,0.00015857,2]
[398398510,1765605031318,-1168.84499563,0.00015857,2]
[398398511,1765605031327,-250.0,0.00015997,2]
[398398512,1765605031337,-151.32,0.00016137,2]
[398398513,1765605031346,-178.50581784,0.0001617,2]
[398398514,1765605031355,-1817.75421528,0.0001617,2]
[398398515,1765605031382,-385.88478472,0.0001617,2]
[398398516,1765605031391,-300.0,0.00016437,2]
[398398517,1765605031400,-1200.0,0.00016437,2]
[398398518,1765605031409,-300.0,0.00016437,2]
[398398519,1765605031418,-2126.67021528,0.00016438,2]
[398398520,1765605031430,-2561.94383725,0.00016438,2]
[398398521,1765605031441,-2074.90594747,0.00016438,2]
[398398522,1765605031450,-7.46931637,0.00016442,2]
[398398523,1765605031461,-776.28283243,0.00016442,2]
[398398524,1765605031472,-555.66208952,0.00016442,2]
[398398525,1765605031483,-250.0,0.00016442,2]
[398398526,1765605031498,-3909.91508604,0.00016442,2]
[398398527,1765605031507,-1781.61442743,0.00016442,2]
[398398528,1765605031548,-107.59555118,0.00016442,2]
[398398530,1765605031557,-191.44701644,0.00016442,2]
[398398532,1765605031567,-550.0,0.00016489,2]
[398398534,1765605031577,-300.0,0.00016489,2]
[398398536,1765605031586,-151.0,0.0001649,2]
[398398538,1765605031595,-200.0,0.0001649,2]
[398398540,1765605031604,-500.0,0.00016499,2]
[398398542,1765605031614,-207.0,0.00016499,2]
[398398544,1765605031623,-500.0,0.00016499,2]
[398398546,1765605031632,-500.0,0.00016499,2]
[398398548,1765605031642,-199.90788301,0.00016499,2]
[398398550,1765605031651,-500.0,0.00016499,2]
[398398552,1765605031660,-134.20002686,0.00016499,2]
[398398596,1765605037435,-2595.14,0.00016499,2]
[398398597,1765605037445,-2595.14,0.00016499,2]
[398398598,1765605037454,-2595.14,0.00016499,2]
[398398599,1765605037463,-1199.75,0.00016499,2]
[398398600,1765605037473,-1077.79550336,0.00016526,2]
[398398601,1765605037482,-5499.32932428,0.00016604,2]
[398398602,1765605037492,-1889.20997856,0.00016604,2]
[398398603,1765605037502,-218.53996822,0.00016643,2]
[398398604,1765605037512,-500.0,0.00016721,2]
[398398605,1765605037521,-500.0,0.00016721,2]
[398398606,1765605037530,-500.0,0.00016721,2]
[398398607,1765605037540,-500.0,0.00016721,2]
[398398608,1765605037549,-500.0,0.00016721,2]
[398398609,1765605037558,-256.65707327,0.00016721,2]
[398398610,1765605037568,-500.0,0.00016721,2]
[398398611,1765605037577,-500.0,0.00016721,2]
[398398612,1765605037586,-500.0,0.00016721,2]
[398398613,1765605037595,-500.0,0.00016721,2]
[398398614,1765605037605,-477.84894002,0.00016721,2]
[398398615,1765605037614,-500.0,0.00016721,2]
[398398616,1765605037624,-500.0,0.00016721,2]
[398398617,1765605037632,-500.0,0.00016721,2]
[398398618,1765605037641,-500.0,0.00016721,2]
[398398619,1765605037651,-500.0,0.00016721,2]
[398398620,1765605037660,-500.0,0.00016721,2]
[398398621,1765605037669,-500.0,0.00016721,2]
[398398623,1765605037678,-500.0,0.00016721,2]
[398398624,1765605037688,-500.0,0.00016721,2]
[398398626,1765605037697,-500.0,0.00016721,2]
[398398628,1765605037706,-500.0,0.00016721,2]
[398398629,1765605037716,-500.0,0.00016721,2]
[398398630,1765605037726,-500.0,0.00016721,2]
[398398631,1765605037735,-500.0,0.00016721,2]
[398398633,1765605037744,-500.0,0.00016721,2]
[398398635,1765605037754,-500.0,0.00016721,2]
[398398637,1765605037763,-500.0,0.00016721,2]
[398398638,1765605037772,-500.0,0.00016721,2]
[398398639,1765605037781,-500.0,0.00016721,2]
[398398640,1765605037790,-500.0,0.00016721,2]
[398398641,1765605037799,-10799.4288484,0.00016722,2]
[398398642,1765605037809,-161.4921984,0.00016722,2]
[398398643,1765605037818,-23155.0374344,0.00016722,2]
[398398644,1765605037828,-11005.6140789,0.00016722,2]
[398398645,1765605037837,-19630.29459224,0.00016762,2]
[398398646,1765605037847,-5499.32932428,0.00016766,2]
[398398647,1765605037856,-1889.20997856,0.00016766,2]
[398398648,1765605037865,-1199.75,0.00016773,2]
[398398649,1765605037875,-166.66,0.00016791,2]
[398398650,1765605037884,-500.0,0.00016849,2]
[398398651,1765605037893,-500.0,0.00016849,2]
[398398652,1765605037902,-500.0,0.00016849,2]
[398398653,1765605037911,-500.0,0.00016849,2]
[398398654,1765605037920,-500.0,0.00016849,2]
[398398655,1765605037930,-500.0,0.00016849,2]
[398398656,1765605037939,-177.56,0.00016881,2]
[398398657,1765605037948,-150.96,0.00016893,2]
[398398658,1765605037957,-178.16,0.000169,2]
[398398659,1765605037966,-359.55,0.000169,2]
[398398660,1765605037976,-178.16,0.000169,2]
[398398661,1765605037984,-178.16,0.000169,2]
[398398662,1765605037993,-178.16,0.000169,2]
[398398663,1765605038003,-5499.32932428,0.00016928,2]
[398398664,1765605038012,-1889.20997856,0.00016928,2]
[398398665,1765605038021,-895.53147365,0.00016971,2]
[398398666,1765605038031,-500.0,0.00016973,2]
[398398667,1765605038040,-501.17585924,0.00016973,2]
[398398668,1765605038049,-155.18423664,0.00016973,2]
[398398669,1765605038059,-500.0,0.00016973,2]
[398398670,1765605038068,-591.9541487,0.00016973,2]
[398398671,1765605038078,-500.0,0.00016973,2]
[398398672,1765605038087,-500.0,0.00016973,2]
[398398673,1765605038096,-500.0,0.00016973,2]
[398398674,1765605038105,-500.0,0.00016973,2]
[398398675,1765605038114,-500.0,0.00016973,2]
[398398676,1765605038123,-500.0,0.00016973,2]
[398398677,1765605038132,-500.0,0.00016973,2]
[398398678,1765605038141,-500.0,0.00016973,2]
[398398679,1765605038151,-500.0,0.00016973,2]
[398398680,1765605038160,-500.0,0.00016973,2]
[398398681,1765605038169,-500.0,0.00016973,2]
[398398682,1765605038179,-500.0,0.00016973,2]
[398398683,1765605038188,-500.0,0.00016973,2]
[398398684,1765605038197,-500.8369678,0.00016973,2]
[398398685,1765605038206,-500.0,0.00016973,2]
[398398686,1765605038218,-500.0,0.00016973,2]
[398398687,1765605038227,-500.0,0.00016973,2]
[398398688,1765605038236,-500.0,0.00016973,2]
[398398689,1765605038246,-302.79243627,0.00016973,2]
[398398690,1765605038255,-500.35142295,0.00016973,2]
[398398691,1765605038266,-500.0,0.00016973,2]
[398398692,1765605038275,-252.22478512,0.00016989,2]
[398398693,1765605038285,-2039.21,0.0001699,2]
[398398694,1765605038295,-2039.21,0.0001699,2]
[398398695,1765605038305,-2039.21,0.0001699,2]
[398398696,1765605038314,-2039.21,0.0001699,2]
[398398697,1765605038324,-2039.21,0.0001699,2]
[398398698,1765605038333,-151.0,0.00016997,2]
[398398699,1765605038342,-200.55510929,0.00016999,2]
[398398700,1765605038352,-500.0,0.00016999,2]
[398398701,1765605038361,-500.0,0.00016999,2]
[398398702,1765605038371,-461.75151474,0.00016999,2]
[398398703,1765605038379,-2595.14,0.00016999,2]
[398398704,1765605038389,-2595.14,0.00016999,2]
[398398705,1765605038398,-2595.14,0.00016999,2]
[398398706,1765605038407,-277863.19549987,0.00017,2]
[398398707,1765605038446,-1563.61745328,0.00017,2]
[398398708,1765605038461,-696.74,0.00017,2]
[398398709,1765605038476,-4000.0,0.00017,2]
[398398710,1765605038487,-20960.59918484,0.00017,2]
[398398711,1765605038498,-1966.54436356,0.00017,2]
[398398712,1765605038509,-929.43420226,0.00017,2]
[398398713,1765605038527,-3730.39045448,0.00017,2]
[398398714,1765605039523,-405.28705655,0.00017,2]
[398398715,1765605039580,-60701.80358013,0.00017,2]
[398398716,1765605039639,-429.59999994,0.00017,2]
[398398717,1765605039650,-788.50317115,0.00017,2]
[398398718,1765605039661,-1690.66002,0.00017,2]
[398398719,1765605039672,-918.085566,0.00017,2]
[398398720,1765605039683,-463.67418489,0.00017,2]
[398398721,1765605039706,-481.57727047,0.00017,2]
[398398722,1765605039765,-3314.06915295,0.00017,2]
[398398724,1765605042615,-18567.30510276,0.00017,2]
[398398727,1765605045436,-154137.18884746,0.00017,2]
[398398728,1765605045601,-1829.46,0.00017,2]
[398398729,1765605045612,-1795.33436996,0.00017,2]
[398398730,1765605045621,-204.66563004,0.00017047,2]
[398398731,1765605045662,-995.08436996,0.00017047,2]
[398398732,1765605045671,-5499.32932428,0.0001709,2]
[398398733,1765605045682,-974.21346996,0.0001709,2]
[398398735,1765605520957,166.66,0.00015155,2]
[398398736,1765605528400,-164.99440518,0.00015475,2]
[398398737,1765605981443,-300.0,0.0002,20]
[398398746,1765606113405,-1.66559482,0.00015475,2]
[398398747,1765606113426,-211.0895498,0.00015675,2]
[398398748,1765606206218,183.0,0.0001938,120]
[398398749,1765606206613,183.0,0.00020349,120]
[398398750,1765606207860,183.0,0.00021366,120]
[398398751,1765606209103,183.0,0.00022435,120]
[398398773,1765606231586,-87.9104502,0.00015675,2]
[398398774,1765606231596,-166.66,0.00015794,2]
[398398775,1765606231605,-225.01300551,0.00015806,2]
[398398776,1765606231617,-366.25699449,0.00015806,2]
[398398777,1765606231625,-68.32024213,0.00016113,2]
[398398778,1765606231637,-98.33975787,0.00016113,2]
[398398779,1765606231646,-166.49,0.00016148,2]
[398398780,1765606231655,-300.0,0.00016299,2]
[398398781,1765606231665,-300.0,0.00016299,2]
[398398782,1765606231674,-1200.0,0.00016299,2]
[398398783,1765606231684,-2958.33896319,0.000163,2]
[398398784,1765606231694,-3500.82474501,0.000163,2]
[398398785,1765606231704,-7786.50153393,0.000163,2]
[398398786,1765606231715,-887.52956503,0.000163,2]
[398398788,1765606231726,-867.26202952,0.000163,2]
[398398791,1765606231740,-349.17285286,0.000163,2]
[398398793,1765606231752,-837.13412801,0.000163,2]
[398398795,1765606231763,-436.60011272,0.000163,2]
[398398796,1765606231774,-453.95773948,0.000163,2]
[398398800,1765606231799,-709.39189094,0.000163,2]
[398398801,1765606231811,-23037.33074751,0.000163,2]
[398398802,1765606231820,-500.0,0.0001639,2]
[398398803,1765606231830,-200.0,0.0001639,2]
[398398804,1765606231839,-500.0,0.0001639,2]
[398398806,1765606231848,-200.0,0.0001639,2]
[398398807,1765606231857,-200.0,0.0001639,2]
[398398808,1765606231866,-500.0,0.00016399,2]
[398398809,1765606231875,-500.0,0.00016399,2]
[398398810,1765606231884,-500.0,0.00016399,2]
[398398811,1765606231893,-500.0,0.00016399,2]
[398398812,1765606231902,-500.0,0.00016399,2]
[398398813,1765606231911,-500.0,0.00016399,2]
[398398814,1765606231920,-500.0,0.00016399,2]
[398398815,1765606231930,-500.0,0.00016399,2]
[398398816,1765606231939,-500.0,0.00016399,2]
[398398817,1765606231948,-526.09866776,0.00016399,2]
[398398818,1765606231957,-500.0,0.00016399,2]
[398398819,1765606231967,-500.0,0.00016399,2]
[398398820,1765606231976,-8250.09311706,0.00016399,2]
[398398821,1765606231985,-550.52788879,0.00016399,2]
[398398822,1765606231994,-1021.57,0.00016399,2]
[398398823,1765606232004,-507.60490985,0.00016399,2]
[398398824,1765606232013,-300.0,0.000164,2]
[398398825,1765606232022,-152.79679915,0.000164,2]
[398398826,1765606232031,-166.66,0.00016432,2]
[398398827,1765606232041,-219.76099334,0.00016438,2]
[398398828,1765606232050,-892.08,0.00016438,2]
[398398829,1765606232060,-892.08,0.00016438,2]
[398398830,1765606232069,-892.08,0.00016438,2]
[398398831,1765606232078,-1066.0,0.00016459,2]
[398398832,1765606232088,-215.0,0.00016459,2]
[398398833,1765606232097,-2958.33896317,0.00016478,2]
[398398834,1765606232106,-3500.82474496,0.00016478,2]
[398398835,1765606232116,-1652.0,0.00016492,2]
[398398836,1765606232125,-228.0,0.00016492,2]
[398398837,1765606232134,-508.68134192,0.00016499,2]
[398398838,1765606232144,-500.0,0.00016499,2]
[398398839,1765606232153,-504.05914821,0.00016499,2]
[398398840,1765606232162,-500.0,0.00016499,2]
[398398841,1765606232172,-500.0,0.00016499,2]
[398398842,1765606232182,-500.0,0.00016499,2]
[398398843,1765606232191,-500.0,0.00016499,2]
[398398844,1765606232200,-500.0,0.00016499,2]
[398398845,1765606232209,-247.0,0.00016519,2]
[398398846,1765606232218,-299.0,0.00016546,2]
[398398847,1765606232227,-434.0,0.00016552,2]
[398398848,1765606232236,-703.67,0.000166,2]
[398398849,1765606232245,-6012.53241375,0.0001665,2]
[398398850,1765606232259,-2958.33896317,0.00016656,2]
[398398851,1765606232268,-3500.82474496,0.00016656,2]
[398398852,1765606232278,-1021.57,0.00016673,2]
[398398853,1765606232287,-500.0,0.00016685,2]
[398398854,1765606232297,-155.68,0.00016701,2]
[398398855,1765606232307,-152.19,0.00016701,2]
[398398856,1765606232316,-986.24369951,0.00016731,2]
[398398857,1765606232326,-166.66,0.00016751,2]
[398398858,1765606232335,-2958.33896317,0.00016833,2]
[398398859,1765606232344,-3500.82474496,0.00016833,2]
[398398860,1765606232353,-504.34774283,0.00016849,2]
[398398861,1765606232363,-218.53996822,0.00016874,2]
[398398862,1765606232372,-1592.1424,0.000169,2]
[398398863,1765606232381,-500.0,0.00016938,2]
[398398864,1765606232391,-200.0,0.00016938,2]
[398398865,1765606232715,-1021.57,0.00016947,2]
[398398866,1765606232750,-500.0,0.00016973,2]
[398398867,1765606232759,-500.0,0.00016973,2]
[398398868,1765606232768,-166.96872211,0.00016973,2]
[398398869,1765606232778,-500.0,0.00016973,2]
[398398870,1765606232787,-500.52668444,0.00016973,2]
[398398871,1765606232797,-362.943865,0.00016973,2]
[398398872,1765606232806,-500.0,0.00016973,2]
[398398873,1765606232815,-334.94217321,0.00016973,2]
[398398874,1765606232824,-500.0,0.00016973,2]
[398398875,1765606232834,-500.0,0.00016973,2]
[398398876,1765606232843,-165.05782679,0.00016973,2]
[398398877,1765606232852,-501.34740605,0.00016973,2]
[398398878,1765606232862,-500.0,0.00016973,2]
[398398879,1765606232871,-500.0,0.00016973,2]
[398398880,1765606232880,-500.0,0.00016973,2]
[398398881,1765606232890,-500.0,0.00016973,2]
[398398882,1765606232900,-500.60353783,0.00016973,2]
[398398883,1765606232910,-500.26433138,0.00016973,2]
[398398884,1765606232919,-482.77559391,0.00016973,2]
[398398885,1765606232929,-500.0,0.00016973,2]
[398398886,1765606232939,-500.0,0.00016973,2]
[398398887,1765606232949,-500.0,0.00016973,2]
[398398888,1765606232958,-500.40431242,0.00016973,2]
[398398889,1765606232967,-500.27212985,0.00016973,2]
[398398890,1765606232976,-500.0,0.00016973,2]
[398398891,1765606232986,-500.0,0.00016973,2]
[398398892,1765606232996,-276.1948738,0.00016973,2]
[398398893,1765606233005,-165.64214933,0.00016973,2]
[398398894,1765606233014,-161.89218432,0.00016973,2]
[398398895,1765606233024,-500.0,0.00016973,2]
[398398896,1765606233035,-223.83121583,0.00016973,2]
[398398897,1765606233044,-500.0,0.00016973,2]
[398398898,1765606233053,-500.0,0.00016973,2]
[398398899,1765606233063,-500.48085874,0.00016973,2]
[398398900,1765606233072,-500.0,0.00016973,2]
[398398901,1765606233082,-168.44035917,0.00016973,2]
[398398902,1765606233092,-500.0,0.00016973,2]
[398398903,1765606233101,-500.6273257,0.00016973,2]
[398398904,1765606233111,-201.4427787,0.00016973,2]
[398398905,1765606233120,-500.69569811,0.00016973,2]
[398398906,1765606233131,-376.6677597,0.00016973,2]
[398398907,1765606233140,-898.25,0.00016986,2]
[398398908,1765606233150,-356.06553219,0.0001699,2]
[398398909,1765606233159,-1762.911,0.00016997,2]
[398398910,1765606233169,-151.0,0.00016998,2]
[398398911,1765606233179,-151.0,0.00016998,2]
[398398912,1765606233188,-1000.0,0.00017,2]
[398398913,1765606233198,-2259.802438,0.00017,2]
[398398914,1765606233207,-2947.3501909,0.00017,2]
[398398915,1765606233217,-892.08,0.00017,2]
[398398916,1765606233226,-14978.5869118,0.00017001,2]
[398398925,1765606237555,-346.72884836,0.00017,2]
[398398926,1765606237564,-116.85807778,0.00017001,2]
[398398927,1765606237575,-564.0886184,0.00017001,2]
[398398929,1765606237615,-1329.12698847,0.00017001,2]
[398398930,1765606237626,-2140.67555723,0.00017001,2]
[398398931,1765606237678,-19016.32010675,0.00017001,2]
[398398932,1765606237740,-3240.35295883,0.00017001,2]
[398398933,1765606237752,-260.25,0.00017001,2]
[398398934,1765606237763,-8078.85510682,0.00017001,2]
[398398935,1765606237774,-24418.91535953,0.00017001,2]
[398398936,1765606237785,-666.0,0.00017001,2]
[398398937,1765606237795,-2888.17197887,0.00017001,2]
[398398938,1765606237805,-1396.78893979,0.00017001,2]
[398398939,1765606237824,-3199.48917838,0.00017001,2]
[398398940,1765606237835,-32923.29771392,0.00017001,2]
[398398941,1765606237846,-15895.53181498,0.00017001,2]
[398398942,1765606237857,-543.57890316,0.00017001,2]
[398398943,1765606237873,-466.06166322,0.00017001,2]
[398398944,1765606237884,-423.81024343,0.00017001,2]
[398398945,1765606237896,-7396.46225131,0.00017001,2]
[398398946,1765606237907,-4452.57868361,0.00017001,2]
[398398948,1765606237918,-9533.17266637,0.00017001,2]
[398398970,1765606239678,-653.76080498,0.00017001,2]
[398398971,1765606239738,-2921.50482802,0.00017001,2]
[398398972,1765606239749,-534.0,0.00017001,2]
[398398973,1765606239760,-19727.43180445,0.00017001,2]
[398398974,1765606239770,-1314.02618812,0.00017001,2]
[398398975,1765606239781,-3631.41267608,0.00017001,2]
[398398976,1765606239790,-716.71167707,0.00017001,2]
[398398977,1765606239814,-102111.53800383,0.00017001,2]
[398398978,1765606239824,-900.293897,0.00017001,2]
[398398979,1765606239833,-36106.0103146,0.00017001,2]
[398398980,1765606239842,-4964.50869,0.00017001,2]
[398398981,1765606239851,-2958.33896317,0.00017011,2]
[398398982,1765606239860,-3500.82474496,0.00017011,2]
[398398983,1765606239870,-300.0,0.00017022,2]
[398398984,1765606239879,-300.0,0.00017022,2]
[398398985,1765606239888,-250.0,0.00017022,2]
[398398986,1765606239898,-2383.13116207,0.00017031,2]
[398398987,1765606239907,-1000.0,0.00017089,2]
[398398988,1765606239916,-151.0,0.0001709,2]
[398398989,1765606239926,-151.0,0.0001709,2]
[398398990,1765606239936,-1006.0,0.000171,2]
[398398991,1765606239945,-960.86,0.00017123,2]
[398398992,1765606239954,-480.51,0.00017123,2]
[398398993,1765606239964,-480.51,0.00017123,2]
[398398994,1765606239973,-480.51,0.00017123,2]
[398398995,1765606239983,-489.98,0.00017123,2]
[398398996,1765606239993,-703.67,0.00017123,2]
[398398997,1765606240002,-479.89,0.00017123,2]
[398398998,1765606240011,-703.67,0.00017123,2]
[398398999,1765606240020,-703.67,0.00017123,2]
[398399000,1765606240030,-703.67,0.00017123,2]
[398399001,1765606240039,-703.67,0.00017123,2]
[398399002,1765606240049,-582.16,0.00017123,2]
[398399003,1765606240059,-703.67,0.00017123,2]
[398399004,1765606240069,-703.67,0.00017123,2]
[398399005,1765606240080,-703.86,0.00017123,2]
[398399006,1765606240089,-356.06553213,0.00017142,2]
[398399007,1765606240099,-2958.33896317,0.00017189,2]
[398399008,1765606240109,-3500.82474496,0.00017189,2]
[398399009,1765606240118,-3777.007,0.00017218,2]
[398399010,1765606240128,-2426.0,0.00017218,2]
[398399011,1765606240138,-1021.57,0.00017221,2]
[398399012,1765606240148,-168.0,0.00017228,2]
[398399013,1765606240158,-892.08,0.0001726,2]
[398399014,1765606240167,-898.25,0.0001726,2]
[398399015,1765606240176,-301.14,0.0001726,2]
[398399016,1765606240185,-150.0,0.0001726,2]
[398399017,1765606240195,-150.0,0.0001726,2]
[398399018,1765606240204,-150.0,0.0001726,2]
[398399019,1765606240213,-150.0,0.0001726,2]
[398399020,1765606240222,-150.0,0.0001726,2]
[398399021,1765606240232,-150.0,0.0001726,2]
[398399022,1765606240241,-150.0,0.0001726,2]
[398399023,1765606240253,-5695.0,0.00017263,2]
[398399024,1765606240264,-356.06553213,0.00017293,2]
[398399025,1765606240274,-421.4,0.00017309,2]
[398399026,1765606240283,-500.0,0.00017315,2]
[398399027,1765606240293,-150.0,0.00017331,2]
[398399028,1765606240302,-150.0,0.00017331,2]
[398399029,1765606240312,-150.0,0.00017331,2]
[398399030,1765606240322,-1324.0,0.00017331,2]
[398399031,1765606240332,-1606.0,0.00017331,2]
[398399032,1765606240342,-611.0,0.00017331,2]
[398399033,1765606240352,-1126.862,0.00017331,2]
[398399034,1765606240361,-1261.0,0.00017331,2]
[398399035,1765606240371,-642.0,0.00017331,2]